bitfinex-derivatives/quotes_BTCF0:USTF0_20250901
["timestamp","ask_amount","ask_price","bid_price","bid_amount"]
[1756703443542,0.0931385,107350.0,107340.0,1.25554671]
[1756703443741,0.0931385,107350.0,107340.0,1.25654671]
[1756703443940,0.0931385,107350.0,107340.0,1.50654671]
[1756703445444,0.0931385,107350.0,107340.0,2.38234671]
[1756703446645,0.0931385,107350.0,107340.0,2.64724671]
[1756703447447,0.0931306,107360.0,107350.0,0.0931317]
[1756703447744,0.0931306,107360.0,107350.0,0.8408688]
[1756703447945,0.0931306,107360.0,107350.0,1.18808325]
[1756703449548,0.0931306,107360.0,107350.0,1.09495155]
[1756703449743,0.0931306,107360.0,107350.0,0.73415155]
[1756703450146,0.0931306,107360.0,107350.0,0.2069371]
[1756703450347,0.0931306,107360.0,107350.0,0.55415155]
[1756703454351,0.0931306,107360.0,107350.0,0.91495155]
[1756703454945,0.0931306,107360.0,107350.0,0.55415155]
[1756703456947,0.0931306,107360.0,107350.0,0.2069371]
[1756703457549,0.0931306,107360.0,107350.0,0.55415155]
[1756703458544,0.0931306,107360.0,107350.0,0.0669371]
[1756703459249,0.0931306,107360.0,107350.0,0.41415155]
[1756703459943,0.0931306,107360.0,107350.0,0.0669371]
[1756703460252,0.0931306,107360.0,107350.0,0.41415155]
[1756703460946,0.0931306,107360.0,107350.0,1.17358353]
[1756703461151,0.0931306,107360.0,107350.0,1.19978483]
[1756703461450,0.0931306,107360.0,107350.0,1.28312999]
[1756703462254,0.0931306,107360.0,107350.0,1.18999159]
[1756703463151,0.0931306,107360.0,107350.0,1.28313009]
[1756703463751,0.0931306,107360.0,107350.0,1.18999159]
[1756703464357,0.0931306,107360.0,107350.0,1.45489159]
[1756703464760,0.0931306,107360.0,107350.0,2.32957159]
[1756703465049,0.0931306,107360.0,107350.0,2.67271009]
[1756703465251,0.0204643,107370.0,107360.0,0.0931298]
[1756703465456,0.0204643,107370.0,107360.0,1.58170386]
[1756703465656,0.0204643,107370.0,107360.0,1.83170386]
[1756703466358,0.02050636,107390.0,107370.0,0.0931134]
[1756703466549,0.02050636,107390.0,107380.0,0.86809513]
[1756703466747,0.02050636,107390.0,107380.0,1.15112685]
[1756703466953,0.02050636,107390.0,107380.0,1.14135961]
[1756703467154,0.02050636,107390.0,107380.0,1.12494255]
[1756703468057,0.02050636,107390.0,107380.0,0.94494255]
[1756703468559,0.62172081,107390.0,107380.0,0.17]
[1756703468760,0.62172081,107390.0,107370.0,0.0669281]
[1756703468761,0.98252081,107390.0,107370.0,0.0669281]
[1756703468956,1.58409445,107380.0,107370.0,0.05]
[1756703469154,1.58409445,107380.0,107360.0,0.0669281]
[1756703469155,1.48688,107380.0,107360.0,0.0669281]
[1756703469354,0.3608,107370.0,107360.0,0.0669281]
[1756703469854,0.63184212,107370.0,107350.0,0.08556008]
[1756703470159,1.23704,107360.0,107350.0,0.08556008]
[1756703470363,1.23704,107360.0,107350.0,0.0669281]
[1756703471058,1.48704,107360.0,107350.0,0.0669281]
[1756703471259,1.48704,107360.0,107340.0,0.0669681]
[1756703471456,1.23704,107360.0,107340.0,0.79418255]
[1756703471758,1.23772,107360.0,107340.0,0.79418255]
[1756703472263,1.23772,107360.0,107340.0,0.4469681]
[1756703472561,1.23772,107360.0,107340.0,0.0779681]
[1756703472860,1.23772,107360.0,107340.0,0.0789681]
[1756703473766,1.23772,107360.0,107340.0,0.0689681]
[1756703474158,0.3608,107360.0,107340.0,0.77698255]
[1756703474359,1.23728,107360.0,107340.0,1.15698255]
[1756703474762,1.23728,107360.0,107340.0,0.77698255]
[1756703474961,0.3608,107360.0,107340.0,1.13698255]
[1756703475263,1.21424,107360.0,107340.0,0.36284]
[1756703475461,1.21424,107360.0,107340.0,0.71005445]
[1756703475662,1.23796,107360.0,107340.0,0.71005445]
[1756703476567,1.23796,107360.0,107340.0,0.36284]
[1756703476768,1.23796,107360.0,107340.0,0.71005445]
[1756703476970,1.23796,107360.0,107340.0,0.34925445]
[1756703479568,0.3608,107350.0,107340.0,0.00204]
[1756703480567,0.6108,107350.0,107340.0,0.00204]
[1756703483165,0.63121065,107350.0,107340.0,0.00204]
[1756703484566,0.9784251,107350.0,107340.0,0.00204]
[1756703484769,0.63121065,107350.0,107340.0,0.00204]
[1756703484957,0.9784251,107350.0,107340.0,0.00204]
[1756703485159,1.50713065,107350.0,107340.0,0.00204]
[1756703485359,1.8543451,107350.0,107340.0,0.00204]
[1756703485661,0.63121065,107350.0,107340.0,0.00104]
[1756703485856,1.8553051,107350.0,107340.0,0.00104]
[1756703486169,1.78665572,107350.0,107340.0,4e-05]
[1756703486668,1.78677572,107350.0,107340.0,4e-05]
[1756703487259,1.78849572,107350.0,107340.0,4e-05]
[1756703487463,0.90977572,107350.0,107340.0,4e-05]
[1756703487666,1.78937572,107350.0,107340.0,4e-05]
[1756703488067,0.90977572,107350.0,107340.0,4e-05]
[1756703488269,1.78957572,107350.0,107340.0,4e-05]
[1756703488466,1.78949572,107350.0,107340.0,4e-05]
[1756703489269,1.88263412,107350.0,107340.0,4e-05]
[1756703490469,1.88271412,107350.0,107340.0,4e-05]
[1756703491370,1.88267412,107350.0,107340.0,4e-05]
[1756703491872,0.0931477,107340.0,107330.0,0.00567053]
[1756703492075,0.0931651,107320.0,107310.0,0.27888507]
[1756703492270,0.9726051,107320.0,107310.0,0.59888507]
[1756703493275,0.9726051,107320.0,107310.0,0.60288507]
[1756703493572,0.9726051,107320.0,107310.0,0.32432]
[1756703493874,0.9732851,107320.0,107310.0,0.60753507]
[1756703494063,0.0931651,107320.0,107310.0,0.32897]
[1756703494265,0.0931651,107320.0,107310.0,0.60753507]
[1756703494578,0.9742051,107320.0,107310.0,0.6137947]
[1756703494764,0.9742051,107320.0,107310.0,0.33522963]
[1756703495168,0.9742051,107320.0,107310.0,0.33922963]
[1756703495373,0.0931651,107320.0,107310.0,1.3217684]
[1756703495579,0.9584851,107320.0,107310.0,1.60033347]
[1756703495775,0.0931651,107320.0,107310.0,1.60033347]
[1756703496176,0.0931651,107320.0,107310.0,1.60001347]
[1756703496676,0.88232,107330.0,107310.0,1.60001347]
[1756703496875,0.88232,107330.0,107320.0,0.27856507]
[1756703497081,0.88232,107330.0,107320.0,0.98936507]
[1756703499577,0.88232,107330.0,107320.0,0.7108]
[1756703499876,0.88232,107330.0,107320.0,0.99436507]
[1756703500476,0.88232,107330.0,107320.0,0.7158]
[1756703500671,0.88232,107330.0,107320.0,0.99436507]
[1756703501380,0.9746834,107330.0,107320.0,0.99436507]
[1756703501580,0.9746834,107330.0,107320.0,1.08753007]
[1756703501779,0.9744434,107330.0,107320.0,1.08753007]
[1756703501984,0.9743634,107330.0,107320.0,1.33753007]
[1756703502183,0.9743634,107330.0,107320.0,1.058965]
[1756703502370,0.0931634,107330.0,107320.0,1.33753007]
[1756703502577,0.9743542,107340.0,107330.0,0.0931563]
[1756703502876,0.9743542,107340.0,107330.0,0.80252137]
[1756703503670,0.9743542,107340.0,107330.0,0.5249563]
[1756703503884,0.9743542,107340.0,107330.0,0.80352137]
[1756703504090,0.9743542,107340.0,107330.0,0.80452137]
[1756703504588,0.0931542,107340.0,107330.0,0.80452137]
[1756703504793,0.9748342,107340.0,107330.0,0.5259563]
[1756703504989,0.9748342,107340.0,107330.0,0.80452137]
[1756703505185,0.9748342,107340.0,107330.0,0.5259563]
[1756703505394,0.9743542,107340.0,107330.0,0.80452137]
[1756703505593,0.9743542,107340.0,107330.0,0.5259563]
[1756703505794,0.9743542,107340.0,107330.0,0.80452137]
[1756703505994,0.0931542,107340.0,107330.0,0.80452137]
[1756703506294,0.9740342,107340.0,107330.0,0.80452137]
[1756703506495,0.9740342,107340.0,107330.0,0.3628]
[1756703507089,0.11354995,107350.0,107340.0,0.0931476]
[1756703507295,0.02041065,107350.0,107340.0,1.41800584]
[1756703507493,0.11354955,107350.0,107340.0,1.66800584]
[1756703508895,0.02041065,107350.0,107340.0,1.66800584]
[1756703509093,0.11417022,107370.0,107360.0,0.0931303]
[1756703509396,0.99481022,107370.0,107360.0,1.02249537]
[1756703509890,0.11417022,107370.0,107360.0,1.02249537]
[1756703510094,0.99761022,107370.0,107360.0,0.73249537]
[1756703510486,0.02404212,107370.0,107360.0,0.98249537]
[1756703510695,0.11716372,107370.0,107360.0,0.98249537]
[1756703510896,0.11916372,107370.0,107360.0,0.98249537]
[1756703513293,0.11916372,107370.0,107360.0,0.25]
[1756703513796,0.0931302,107360.0,107350.0,0.71216669]
[1756703513987,0.0931302,107360.0,107350.0,1.08216669]
[1756703514193,0.0931302,107360.0,107350.0,1.00936507]
[1756703514392,0.0931302,107360.0,107350.0,1.10250397]
[1756703515091,0.0931302,107360.0,107350.0,1.00936507]
[1756703515497,0.9731702,107360.0,107350.0,1.00936507]
[1756703515796,0.9741702,107360.0,107350.0,0.7308]
[1756703515991,0.9741702,107360.0,107350.0,1.00936507]
[1756703518795,0.9741702,107360.0,107350.0,1.01401507]
[1756703519885,0.9741702,107360.0,107350.0,0.73545]
[1756703520090,1.61353527,107360.0,107350.0,0.00465]
[1756703520288,0.4559302,107360.0,107350.0,0.00465]
[1756703520493,0.0951302,107360.0,107350.0,0.54321507]
[1756703520797,0.9739702,107360.0,107350.0,0.54321507]
[1756703520996,0.9739702,107360.0,107350.0,0.00465]
[1756703521194,0.9739702,107360.0,107350.0,0.28321507]
[1756703521393,0.9739702,107360.0,107350.0,0.00465]
[1756703521595,0.9739702,107360.0,107350.0,0.28321507]
[1756703522895,0.9742102,107360.0,107350.0,0.28321507]
[1756703527898,0.9734502,107360.0,107350.0,0.28321507]
[1756703528093,0.9734502,107360.0,107350.0,0.64401507]
[1756703529094,0.0951302,107360.0,107350.0,0.64401507]
[1756703529296,0.0951302,107360.0,107350.0,1.14408197]
[1756703529499,0.0951302,107360.0,107350.0,1.07715387]
[1756703529699,0.0951302,107360.0,107350.0,1.14408197]
[1756703529900,0.0951302,107360.0,107350.0,1.07715387]
[1756703530101,0.0951302,107360.0,107350.0,1.05094317]
[1756703530296,0.002,107360.0,107350.0,1.05094317]
[1756703530600,0.11416952,107370.0,107360.0,0.0931302]
[1756703530900,0.11416952,107370.0,107360.0,0.79942337]
[1756703532996,0.11416952,107370.0,107360.0,1.32798844]
[1756703533300,0.11416952,107370.0,107360.0,1.66798844]
[1756703533502,0.02104212,107370.0,107360.0,1.43798844]
[1756703534102,0.02104212,107370.0,107360.0,1.64798844]
[1756703534302,0.0931204,107380.0,107370.0,0.0931215]
[1756703534505,0.09311,107390.0,107370.0,1.88877164]
[1756703534698,0.09311,107390.0,107380.0,0.79934567]
[1756703534900,0.09311,107390.0,107380.0,0.81802677]
[1756703535804,0.09311,107390.0,107380.0,0.82498432]
[1756703536305,0.09411,107390.0,107380.0,0.66500372]
[1756703536905,0.09411,107390.0,107380.0,0.66965372]
[1756703539307,0.09511,107390.0,107380.0,0.66965372]
[1756703539509,1.50219507,107390.0,107380.0,0.0233311]
[1756703539907,1.22363,107390.0,107380.0,0.0233311]
[1756703540302,1.58443,107390.0,107380.0,0.0233311]
[1756703543004,1.8841956,107390.0,107380.0,0.0233311]
[1756703543201,1.86299507,107390.0,107380.0,0.0233311]
[1756703543409,1.88419595,107390.0,107380.0,0.00465]
[1756703545212,1.00767595,107390.0,107380.0,0.00465]
[1756703545408,1.88291595,107390.0,107380.0,0.00465]
[1756703546301,1.00767595,107390.0,107380.0,0.00465]
[1756703546608,1.35375088,107390.0,107380.0,0.28321507]
[1756703546916,1.35427088,107390.0,107380.0,0.28321507]
[1756703547210,0.97227,107390.0,107380.0,0.64401507]
[1756703547407,0.97223,107390.0,107380.0,0.97401507]
[1756703547610,0.97223,107390.0,107380.0,0.64401507]
[1756703547813,0.09711,107390.0,107380.0,0.96401507]
[1756703548007,0.97223,107390.0,107380.0,0.96401507]
[1756703548210,0.97223,107390.0,107380.0,0.68545]
[1756703548408,0.97223,107390.0,107380.0,0.96401507]
[1756703549111,0.97219,107390.0,107380.0,0.96401507]
[1756703550217,0.97219,107390.0,107380.0,0.28321507]
[1756703550915,0.97219,107390.0,107380.0,0.64401507]
[1756703551619,0.97219,107390.0,107380.0,0.99401507]
[1756703552724,0.97143,107390.0,107380.0,0.64401507]
[1756703552923,0.97143,107390.0,107380.0,0.97401507]
[1756703556421,0.97143,107390.0,107380.0,0.28321507]
[1756703557424,1.33223,107390.0,107380.0,0.28321507]
[1756703557621,1.35345101,107390.0,107380.0,0.00465]
[1756703558325,1.35345101,107390.0,107380.0,0.28321507]
[1756703558727,1.35345101,107390.0,107380.0,0.00465]
[1756703559625,1.88201608,107390.0,107380.0,0.00465]
[1756703559926,2.19201608,107390.0,107380.0,0.00465]
[1756703560121,2.19065608,107390.0,107380.0,0.00465]
[1756703563126,1.31769608,107390.0,107380.0,0.00465]
[1756703563324,1.06769608,107390.0,107380.0,0.00465]
[1756703563526,1.94029608,107390.0,107380.0,0.00465]
[1756703564028,1.94021608,107390.0,107380.0,0.00465]
[1756703566422,1.06769608,107390.0,107380.0,0.00465]
[1756703566626,1.93985608,107390.0,107380.0,0.00465]
[1756703567544,1.06769608,107390.0,107380.0,0.00465]
[1756703567730,1.93985608,107390.0,107380.0,0.00465]
[1756703573441,2.18985608,107390.0,107350.0,0.55041707]
[1756703573637,0.63936507,107370.0,107350.0,0.55041707]
[1756703573838,0.87084,107360.0,107350.0,0.55041707]
[1756703574040,1.23164,107360.0,107350.0,0.006952]
[1756703574242,1.23164,107360.0,107340.0,0.65837861]
[1756703574438,1.23164,107360.0,107340.0,0.92327861]
[1756703574639,1.23164,107360.0,107350.0,0.002]
[1756703575145,1.51020507,107360.0,107350.0,0.004]
[1756703575931,1.51744939,107360.0,107350.0,0.004]
[1756703576136,1.51744939,107360.0,107350.0,0.002]
[1756703576337,1.51744939,107360.0,107340.0,0.28691354]
[1756703576537,0.3608,107350.0,107340.0,0.28691354]
[1756703576945,0.3608,107350.0,107340.0,0.28391354]
[1756703577838,1.23144,107350.0,107340.0,0.28491354]
[1756703578444,1.23124,107350.0,107340.0,0.28491354]
[1756703578645,1.23124,107350.0,107340.0,0.28591354]
[1756703579046,1.23124,107350.0,107340.0,0.2669]
[1756703579243,1.25148367,107350.0,107340.0,0.2669]
[1756703579842,1.25116367,107350.0,107340.0,0.2669]
[1756703580140,0.38116367,107350.0,107340.0,0.28056507]
[1756703580341,0.74112367,107350.0,107340.0,0.28056507]
[1756703580642,0.02036367,107350.0,107340.0,0.28056507]
[1756703580848,0.83636367,107350.0,107340.0,1.47993014]
[1756703581349,0.02036367,107350.0,107340.0,1.57307734]
[1756703582148,0.02036367,107350.0,107340.0,1.51993014]
[1756703582746,0.02036367,107350.0,107340.0,1.33307734]
[1756703582941,0.02036367,107350.0,107340.0,1.59307734]
[1756703583745,0.02036367,107350.0,107340.0,1.49993014]
[1756703584446,0.02036367,107350.0,107340.0,1.28993014]
[1756703584743,0.02036367,107350.0,107340.0,1.48993014]
[1756703585950,0.02036367,107350.0,107340.0,1.75483014]
[1756703586345,0.02036367,107350.0,107340.0,1.17626507]
[1756703588652,0.02036367,107350.0,107340.0,0.92626507]
[1756703591043,0.02036367,107350.0,107340.0,1.20483014]
[1756703591242,0.02036367,107350.0,107340.0,1.58169924]
[1756703591447,0.02036367,107350.0,107340.0,2.45157924]
[1756703591644,0.02036367,107350.0,107340.0,2.63471014]
[1756703591848,0.02036367,107350.0,107340.0,2.52982644]
[1756703592854,0.38192562,107370.0,107340.0,2.36989014]
[1756703593053,0.38192562,107370.0,107360.0,0.27856507]
[1756703593956,0.89104562,107370.0,107350.0,0.63936507]
[1756703594149,0.89104562,107370.0,107360.0,0.27856507]
[1756703595053,0.02112562,107370.0,107360.0,0.27856507]
[1756703595252,0.02112562,107370.0,107350.0,0.4539389]
[1756703595556,0.02312562,107370.0,107360.0,0.63936507]
[1756703595759,0.02312562,107370.0,107360.0,0.82249587]
[1756703595958,0.002,107370.0,107360.0,2.51062094]
[1756703596155,0.002,107370.0,107360.0,2.57749004]
[1756703596361,0.004,107370.0,107360.0,2.51062094]
[1756703597160,0.86956,107390.0,107370.0,0.0931197]
[1756703597461,0.86956,107390.0,107380.0,0.27856507]
[1756703598355,0.86956,107390.0,107380.0,0.63936507]
[1756703598857,1.23136,107390.0,107370.0,1.50832507]
[1756703599062,1.23136,107390.0,107380.0,0.27856507]
[1756703599459,1.48136,107390.0,107370.0,0.63936507]
[1756703599761,1.50992507,107390.0,107370.0,0.27856507]
[1756703599961,1.51292507,107390.0,107360.0,0.63936507]
[1756703600164,0.3608,107380.0,107370.0,0.27856507]
[1756703600563,0.6108,107380.0,107360.0,0.27856507]
[1756703600766,0.3608,107380.0,107360.0,0.27856507]
[1756703600960,0.63936507,107380.0,107360.0,0.27856507]
[1756703601962,0.3608,107380.0,107360.0,0.27856507]
[1756703602164,0.63936507,107380.0,107350.0,0.65785272]
[1756703602359,0.63936507,107380.0,107360.0,0.27856507]
[1756703602360,0.3608,107380.0,107360.0,0.27856507]
[1756703602666,1.25065685,107380.0,107360.0,0.27956507]
[1756703604163,1.25065685,107380.0,107360.0,0.001]
[1756703604358,1.25065685,107380.0,107360.0,0.27956507]
[1756703604765,1.25065685,107380.0,107360.0,0.28056507]
[1756703604964,0.88917685,107380.0,107370.0,0.27856507]
[1756703605766,1.24997685,107380.0,107370.0,0.27856507]
[1756703605966,1.25097685,107380.0,107370.0,0.27856507]
[1756703606164,1.25097685,107380.0,107360.0,0.27956507]
[1756703606566,1.25097685,107380.0,107360.0,0.27856507]
[1756703607361,0.3608,107370.0,107360.0,0.27856507]
[1756703607766,0.3608,107370.0,107360.0,0.27956507]
[1756703608164,0.3608,107370.0,107360.0,0.28056507]
[1756703609367,0.3608,107370.0,107360.0,0.002]
[1756703610368,0.3608,107370.0,107360.0,0.28056507]
[1756703610671,1.22832,107370.0,107360.0,0.28056507]
[1756703611071,1.23132,107370.0,107360.0,0.27956507]
[1756703611272,1.23132,107370.0,107360.0,0.27856507]
[1756703611574,1.23432,107370.0,107360.0,0.27856507]
[1756703612976,1.23432,107370.0,107350.0,0.29705272]
[1756703613171,0.3608,107360.0,107350.0,0.29705272]
[1756703613674,0.867,107360.0,107350.0,0.65785272]
[1756703613870,0.38795963,107370.0,107350.0,0.65785272]
[1756703614176,1.25383963,107370.0,107360.0,0.27856507]
[1756703614569,1.25083963,107370.0,107360.0,0.27856507]
[1756703614775,1.25263963,107370.0,107360.0,0.27856507]
[1756703615377,1.25063963,107370.0,107360.0,0.27856507]
[1756703615676,1.25163963,107370.0,107360.0,0.27856507]
[1756703616277,1.25463963,107370.0,107360.0,0.27856507]
[1756703619881,1.23348,107370.0,107360.0,0.27856507]
[1756703621286,0.3668,107370.0,107360.0,0.27856507]
[1756703621487,0.3668,107370.0,107360.0,0.52856507]
[1756703622786,0.003,107370.0,107360.0,0.98249717]
[1756703622978,0.005,107370.0,107360.0,0.88936507]
[1756703623685,0.005,107370.0,107360.0,0.98249717]
[1756703623885,0.004,107370.0,107360.0,0.98249717]
[1756703624089,0.002,107370.0,107360.0,0.98249717]
[1756703624587,0.002,107370.0,107360.0,0.88936507]
[1756703624788,0.002,107370.0,107360.0,0.98249717]
[1756703625188,0.001,107370.0,107360.0,0.98249717]
[1756703625388,0.001,107370.0,107360.0,1.09249717]
[1756703625580,0.001,107370.0,107360.0,1.34249717]
[1756703625788,0.001,107370.0,107360.0,1.4093838]
[1756703625994,0.001,107370.0,107360.0,1.68794887]
[1756703626789,0.001,107370.0,107360.0,1.62106224]
[1756703626991,2.87265225,107400.0,107370.0,0.1862468]
[1756703627186,2.87265225,107400.0,107380.0,0.4539139]
[1756703627490,2.87265225,107400.0,107390.0,0.27856507]
[1756703627692,2.87265225,107400.0,107390.0,0.2863519]
[1756703627883,3.21505225,107400.0,107390.0,0.2863519]
[1756703628189,2.34997225,107400.0,107390.0,0.2863519]
[1756703628390,3.21597225,107400.0,107390.0,0.2863519]
[1756703628990,2.85517225,107400.0,107390.0,0.2863519]
[1756703629292,1.99017225,107400.0,107390.0,0.6471519]
[1756703629490,2.85509225,107400.0,107390.0,0.6471519]
[1756703629986,2.85709225,107400.0,107390.0,0.6471519]
[1756703630188,0.02413225,107400.0,107390.0,0.6471519]
[1756703630394,0.02413225,107400.0,107390.0,1.0071519]
[1756703630595,0.02313225,107400.0,107390.0,0.6471519]
[1756703630893,0.02413225,107400.0,107390.0,0.6471519]
[1756703631093,0.02413225,107400.0,107390.0,0.740258]
[1756703631483,0.02413225,107400.0,107390.0,1.060258]
[1756703631992,0.003,107400.0,107390.0,1.060258]
[1756703632194,0.003,107400.0,107390.0,1.07896295]
[1756703632387,0.003,107400.0,107390.0,0.75896295]
[1756703632785,0.001,107400.0,107390.0,1.37896295]
[1756703633095,0.001,107400.0,107390.0,1.35896295]
[1756703633895,0.001,107400.0,107390.0,1.63752802]
[1756703634092,1.00163465,107420.0,107400.0,0.0930957]
[1756703634288,1.33163465,107420.0,107410.0,0.27856507]
[1756703634493,1.33163465,107420.0,107400.0,0.4538957]
[1756703634797,1.33163465,107420.0,107410.0,0.27856507]
[1756703635198,0.71163465,107420.0,107410.0,0.27856507]
[1756703635398,1.57743465,107420.0,107410.0,0.27856507]
[1756703636097,1.57843465,107420.0,107410.0,0.27856507]
[1756703636898,0.38663465,107420.0,107410.0,0.27856507]
[1756703637090,1.25143465,107420.0,107410.0,0.27856507]
[1756703637290,0.89063465,107420.0,107410.0,0.27856507]
[1756703640197,0.02583465,107420.0,107410.0,0.27856507]
[1756703640393,0.89051465,107420.0,107410.0,0.27856507]
[1756703643206,1.25131465,107420.0,107400.0,0.27856507]
[1756703643407,1.25131465,107420.0,107410.0,0.27856507]
[1756703644308,1.24831465,107420.0,107410.0,0.27856507]
[1756703644498,1.24931465,107420.0,107410.0,0.27856507]
[1756703644898,1.25031465,107420.0,107410.0,0.27856507]
[1756703645096,1.25027465,107420.0,107410.0,0.27856507]
[1756703645402,1.25127465,107420.0,107410.0,0.27856507]
[1756703645597,0.38663465,107420.0,107410.0,0.27856507]
[1756703645802,1.25123465,107420.0,107410.0,0.27856507]
[1756703646703,0.02583465,107420.0,107410.0,0.37165387]
[1756703646911,0.005,107420.0,107410.0,0.99165387]
[1756703647105,0.005,107420.0,107410.0,1.35245387]
[1756703647702,0.005,107420.0,107410.0,0.7038888]
[1756703647906,0.005,107420.0,107410.0,1.29245387]
[1756703649505,0.005,107420.0,107410.0,1.31154782]
[1756703649807,0.005,107420.0,107410.0,1.59011289]
[1756703650003,0.005,107420.0,107410.0,0.75154782]
[1756703650509,0.005,107420.0,107410.0,0.65845902]
[1756703650708,0.005,107420.0,107410.0,0.75154782]
[1756703652705,0.005,107420.0,107410.0,1.00154782]
[1756703653815,0.005,107420.0,107410.0,0.90845902]
[1756703654209,0.005,107420.0,107410.0,1.00154782]
[1756703655314,0.005,107420.0,107410.0,0.90845902]
[1756703660717,0.005,107420.0,107410.0,0.29765902]
[1756703663113,0.3658,107420.0,107410.0,0.29765902]
[1756703663316,0.3658,107420.0,107410.0,0.01909395]
[1756703663516,0.3658,107420.0,107410.0,0.29765902]
[1756703665616,0.005,107420.0,107410.0,0.29765902]
[1756703665820,0.005,107420.0,107410.0,0.39074732]
[1756703666821,0.005,107420.0,107410.0,0.29765902]
[1756703667920,0.005,107420.0,107410.0,0.64765902]
[1756703668323,0.6158,107420.0,107410.0,0.01909395]
[1756703668620,0.6158,107420.0,107410.0,0.29765902]
[1756703671230,0.255,107420.0,107410.0,0.29765902]
[1756703678441,0.6158,107420.0,107410.0,0.01909395]
[1756703678743,0.6158,107420.0,107410.0,0.29765902]
[1756703680744,0.3658,107420.0,107410.0,0.29765902]
[1756703680948,0.3658,107420.0,107400.0,0.27856507]
[1756703680949,0.64436507,107420.0,107400.0,0.27856507]
[1756703681149,1.22984,107420.0,107410.0,0.27856507]
[1756703681649,0.86904,107420.0,107410.0,0.27856507]
[1756703682151,0.86804,107420.0,107410.0,0.27856507]
[1756703682847,0.86604,107420.0,107400.0,0.63936507]
[1756703683051,0.86704,107420.0,107410.0,0.27856507]
[1756703683648,0.86604,107420.0,107410.0,0.27856507]
[1756703683848,0.86904,107420.0,107410.0,0.27856507]
[1756703684349,1.59107746,107420.0,107400.0,0.27856507]
[1756703684547,0.3608,107410.0,107400.0,0.27856507]
[1756703685844,0.3608,107410.0,107390.0,1.58309638]
[1756703686043,0.3608,107410.0,107400.0,0.27856507]
[1756703687047,0.3628,107410.0,107400.0,0.27856507]
[1756703687450,0.3628,107410.0,107390.0,1.58309638]
[1756703687651,0.3628,107410.0,107400.0,0.27856507]
[1756703687952,0.3638,107410.0,107400.0,0.27856507]
[1756703688154,0.3648,107410.0,107400.0,0.27856507]
[1756703688654,0.3855989,107410.0,107400.0,0.27856507]
[1756703688850,0.7555989,107410.0,107390.0,0.37196145]
[1756703689050,0.3855989,107410.0,107400.0,0.27856507]
[1756703689450,1.2495189,107410.0,107400.0,0.27856507]
[1756703690151,1.2505189,107410.0,107400.0,0.27856507]
[1756703690446,0.0257989,107410.0,107400.0,0.55713014]
[1756703690651,0.0257989,107410.0,107400.0,1.16793014]
[1756703692252,0.0247989,107410.0,107400.0,1.16793014]
[1756703692552,0.0227989,107410.0,107400.0,1.16793014]
[1756703692748,0.0237989,107410.0,107400.0,1.16793014]
[1756703695147,0.0237989,107410.0,107400.0,1.52793014]
[1756703695447,0.0237989,107410.0,107400.0,1.68793174]
[1756703696049,0.0237989,107410.0,107400.0,2.09867474]
[1756703696244,0.0237989,107410.0,107400.0,2.41867474]
[1756703699145,0.0237989,107410.0,107400.0,2.16867474]
[1756703700251,0.0237989,107410.0,107400.0,2.16859474]
[1756703700850,0.0237989,107410.0,107400.0,2.26169174]
[1756703701251,0.0237989,107410.0,107400.0,2.16859474]
[1756703702949,0.0237989,107410.0,107400.0,1.30483474]
[1756703703259,0.0237989,107410.0,107400.0,1.09483474]
[1756703704055,0.2737989,107410.0,107400.0,0.34546967]
[1756703704361,0.0237989,107410.0,107400.0,0.34546967]
[1756703704552,0.2737989,107410.0,107400.0,0.27856507]
[1756703704757,0.6345989,107410.0,107400.0,0.27856507]
[1756703705163,0.6345989,107410.0,107390.0,0.09339638]
[1756703705364,0.3845989,107410.0,107400.0,0.27856507]
[1756703705664,1.2482789,107410.0,107400.0,0.27856507]
[1756703706263,0.3835989,107410.0,107400.0,0.27856507]
[1756703706456,0.0227989,107410.0,107400.0,0.27856507]
[1756703706658,0.0227989,107410.0,107400.0,0.63936507]
[1756703706960,0.0227989,107410.0,107400.0,0.27856507]
[1756703707160,0.002,107410.0,107400.0,0.91793014]
[1756703707357,0.002,107410.0,107400.0,2.22470714]
[1756703707663,1.22448,107430.0,107400.0,2.55651174]
[1756703707963,0.38223957,107430.0,107420.0,0.27856507]
[1756703708362,0.38223957,107430.0,107420.0,0.63856507]
[1756703708553,1.98779984,107440.0,107420.0,1.06626967]
[1756703708757,1.98779984,107440.0,107430.0,0.27856507]
[1756703709158,0.02067984,107440.0,107430.0,0.27856507]
[1756703709559,0.38147984,107440.0,107430.0,0.27856507]
[1756703709862,0.38447984,107440.0,107420.0,0.34546967]
[1756703710366,0.38447984,107440.0,107430.0,0.27856507]
[1756703710963,0.39047984,107440.0,107430.0,0.27856507]
[1756703711264,0.38747984,107440.0,107430.0,0.27856507]
[1756703711458,1.25507984,107440.0,107430.0,0.27856507]
[1756703711663,1.62507984,107440.0,107430.0,0.27856507]
[1756703712165,1.62507984,107440.0,107410.0,0.5399887]
[1756703712366,1.62507984,107440.0,107430.0,0.27856507]
[1756703713167,1.25507984,107440.0,107430.0,0.27856507]
[1756703713363,0.89427984,107440.0,107430.0,0.27856507]
[1756703713564,1.25507984,107440.0,107430.0,0.27856507]
[1756703713865,0.89427984,107440.0,107430.0,0.27856507]
[1756703714064,0.89427984,107440.0,107420.0,0.3608]
[1756703714265,1.25507984,107440.0,107430.0,0.27856507]
[1756703714768,1.25307984,107440.0,107430.0,0.27856507]
[1756703715467,1.25107984,107440.0,107430.0,0.27856507]
[1756703715670,1.25507984,107440.0,107430.0,0.27856507]
[1756703716470,2.14364491,107440.0,107410.0,0.0861007]
[1756703716670,0.3608,107430.0,107410.0,0.29776117]
[1756703716969,0.7008,107430.0,107410.0,0.29776117]
[1756703717164,0.3608,107430.0,107420.0,0.27856507]
[1756703717370,0.83152,107430.0,107420.0,0.27856507]
[1756703718468,1.24699984,107440.0,107420.0,0.27856507]
[1756703718765,1.24499984,107440.0,107430.0,0.27856507]
[1756703718961,0.88419984,107440.0,107430.0,0.27856507]
[1756703719668,0.89219984,107440.0,107430.0,0.27856507]
[1756703719971,0.27867984,107440.0,107430.0,0.27856507]
[1756703720272,0.89219984,107440.0,107430.0,0.27856507]
[1756703721176,0.02467984,107440.0,107430.0,0.27856507]
[1756703721375,0.89415984,107440.0,107430.0,0.27856507]
[1756703722372,0.89415984,107440.0,107420.0,0.3608]
[1756703722566,0.89415984,107440.0,107430.0,0.27856507]
[1756703723171,0.03067984,107440.0,107430.0,0.27856507]
[1756703723378,0.87512924,107440.0,107430.0,0.27856507]
[1756703723879,1.23592924,107440.0,107430.0,0.27856507]
[1756703724270,1.23492924,107440.0,107430.0,0.27856507]
[1756703724471,1.23545597,107440.0,107430.0,0.27856507]